bitfinex/quotes_SOLUSD_20250817
["timestamp","ask_amount","ask_price","bid_price","bid_amount"]
[1755399309777,5.3473285,191.28,191.26,0.71]
[1755399311098,5.3473285,191.27,191.26,0.03]
[1755399311485,5.2276906,191.29,191.26,0.03]
[1755399311691,5.3473285,191.27,191.26,0.03]
[1755399313186,10.57553992,191.27,191.26,0.03]
[1755399313386,5.3473285,191.27,191.26,0.03]
[1755399317214,10.57553992,191.27,191.26,0.03]
[1755399317418,5.3473285,191.27,191.26,0.03]
[1755399318316,11.26553992,191.27,191.26,0.03]
[1755399318481,48.96553992,191.27,191.26,0.03]
[1755399318686,56.36322697,191.27,191.26,0.03]
[1755399318903,26.0,191.25,191.24,0.03]
[1755399319100,36.57608666,191.25,191.24,0.03]
[1755399319304,37.26608666,191.25,191.24,0.03]
[1755399320091,44.66290418,191.25,191.24,0.03]
[1755399320293,40.76976529,191.25,191.24,0.03]
[1755399320534,44.66167411,191.25,191.24,0.03]
[1755399321397,15.10621557,191.24,191.22,0.03]
[1755399321730,76.44291595,191.23,191.22,0.03]
[1755399322129,77.13291595,191.23,191.22,0.03]
[1755399322931,82.36222097,191.23,191.22,0.03]
[1755399323925,74.96663352,191.23,191.22,0.03]
[1755399325930,78.85193836,191.23,191.22,0.03]
[1755399326615,78.85108156,191.23,191.22,0.03]
[1755399328245,40.46108156,191.23,191.22,0.03]
[1755399328420,74.27663352,191.23,191.22,0.68]
[1755399328622,34.39179891,191.23,191.22,0.68]
[1755399329234,8.39179891,191.23,191.22,0.68]
[1755399329441,8.22320222,191.24,191.22,0.68]
[1755399330128,8.22320222,191.24,191.23,0.65]
[1755399332628,8.22320222,191.24,191.23,11.24429478]
[1755399334863,8.22320222,191.24,191.23,26.35051035]
[1755399335065,5.52320222,191.24,191.23,26.35051035]
[1755399335570,0.06,191.28,191.26,26.0]
[1755399335767,0.06,191.28,191.27,5.36498976]
[1755399335969,0.06,191.28,191.27,6.01498976]
[1755399336858,0.06,191.28,191.27,11.24320118]
[1755399338866,0.06,191.28,191.27,5.87821142]
[1755399339185,0.06,191.28,191.25,0.65]
[1755399339580,5.42498976,191.28,191.25,0.65]
[1755399340087,0.06,191.28,191.25,0.65]
[1755399340693,0.06,191.28,191.27,46.47120533]
[1755399341183,0.06,191.3,191.27,52.34941675]
[1755399341383,0.06,191.3,191.29,20.47120533]
[1755399341868,0.06,191.3,191.29,21.12120533]
[1755399343060,0.06,191.3,191.29,26.34887013]
[1755399343683,0.06,191.3,191.29,20.98388037]
[1755399345760,0.06,191.3,191.29,100.88388037]
[1755399347416,0.06,191.3,191.29,106.24887013]
[1755399347998,0.06,191.3,191.29,143.90887013]
[1755399349088,0.06,191.3,191.29,169.90887013]
[1755399349985,0.06,191.3,191.29,164.54388037]
[1755399350298,0.06,191.3,191.29,169.90887013]
[1755399351292,0.06,191.3,191.29,164.54388037]
[1755399351597,0.06,191.3,191.29,169.90887013]
[1755399351786,0.06,191.3,191.29,164.03120533]
[1755399352307,0.06,191.3,191.29,84.80120533]
[1755399352614,0.06,191.3,191.29,90.02887013]
[1755399352783,0.06,191.3,191.29,66.81784526]
[1755399352979,0.06,191.3,191.29,26.0]
[1755399353218,0.06,191.3,191.29,63.66]
[1755399353719,0.06,191.3,191.29,62.34449211]
[1755399353916,0.06,191.3,191.29,65.50233737]
[1755399354916,0.06,191.31,191.3,15.10621557]
[1755399355097,1e-08,191.32,191.3,18.93406083]
[1755399355410,1e-08,191.32,191.31,56.44677265]
[1755399355592,1e-08,191.32,191.31,57.11677265]
[1755399355911,1e-08,191.32,191.31,62.34389093]
[1755399358650,1e-08,191.32,191.31,20.33333385]
[1755399358921,1e-08,191.32,191.31,57.97333385]
[1755399359120,1e-08,191.32,191.31,52.74621557]
[1755399360201,1e-08,191.32,191.31,57.97333385]
[1755399360409,1e-08,191.32,191.31,52.74621557]
[1755399361346,1e-08,191.32,191.31,37.64]
[1755399361640,3.82784527,191.32,191.31,37.64]
[1755399361930,3.82784527,191.32,191.28,37.64]
[1755399362101,3.15784526,191.29,191.28,37.64]
[1755399362301,3.82784526,191.29,191.28,37.64]
[1755399362513,3.82784526,191.29,191.27,37.64]
[1755399362719,0.67,191.28,191.27,37.64]
[1755399362921,3.82784526,191.28,191.27,37.64]
[1755399363142,3.82784526,191.28,191.25,37.64]
[1755399363348,3.15784526,191.3,191.25,41.46784526]
[1755399363514,8.1641895,191.32,191.28,3.15784526]
[1755399363709,8.1641895,191.32,191.29,40.79784526]
[1755399363945,8.1641895,191.32,191.31,3.15784526]
[1755399364116,8.1641895,191.32,191.31,55.90406083]
[1755399364316,8.1641895,191.32,191.31,37.64]
[1755399364511,8.8341895,191.32,191.28,29.15784526]
[1755399364810,8.8341895,191.32,191.29,37.64]
[1755399365011,8.1641895,191.32,191.29,37.64]
[1755399365734,8.8341895,191.32,191.29,37.64]
[1755399365941,0.67,191.31,191.29,37.64]
[1755399366165,6.02949618,191.3,191.29,37.64]
[1755399366455,8.1641895,191.32,191.27,15.13621557]
[1755399366640,8.1641895,191.32,191.31,5.35949618]
[1755399366815,14.19368568,191.32,191.29,37.64]
[1755399367010,5.35949618,191.3,191.29,37.64]
[1755399367329,5.35949618,191.3,191.27,0.03]
[1755399367330,6.02949618,191.3,191.27,0.03]
[1755399367520,5.35949618,191.28,191.27,0.03]
[1755399367913,0.67,191.28,191.27,0.03]
[1755399368131,5.35949618,191.29,191.27,0.03]
[1755399368343,8.1641895,191.32,191.28,43.66949618]
[1755399368523,8.1641895,191.32,191.31,5.35949618]
[1755399368717,8.1641895,191.32,191.31,48.22661446]
[1755399368945,8.1641895,191.32,191.31,42.86711828]
[1755399369336,8.1641895,191.32,191.31,48.89661446]
[1755399369535,8.1641895,191.32,191.31,64.00283003]
[1755399369743,8.1641895,191.32,191.31,90.00283003]
[1755399369969,1e-08,191.32,191.31,90.00283003]
[1755399371279,1e-08,191.32,191.31,89.33283003]
[1755399371454,1e-08,191.32,191.31,63.64]
[1755399371656,1e-08,191.32,191.31,37.64]
[1755399371970,0.67000001,191.32,191.31,37.64]
[1755399372173,0.67000001,191.32,191.3,37.64]
[1755399372898,1e-08,191.32,191.3,42.99949618]
[1755399373062,1e-08,191.32,191.3,43.66949618]
[1755399373377,1e-08,191.32,191.31,21.13571175]
[1755399374581,1e-08,191.32,191.31,21.65842357]
[1755399375208,1e-08,191.32,191.31,26.88554185]
[1755399376288,1e-08,191.32,191.31,21.52604567]
[1755399376604,1e-08,191.32,191.31,26.88554185]
[1755399380212,1e-08,191.32,191.31,46.33333385]
[1755399380520,1e-08,191.32,191.31,57.95333385]
[1755399380684,1e-08,191.32,191.31,83.95333385]
[1755399380881,1e-08,191.32,191.31,89.98283003]
[1755399383205,1e-08,191.32,191.31,89.31283003]
[1755399383709,1e-08,191.32,191.31,89.98283003]
[1755399384276,1e-08,191.32,191.31,169.88283003]
[1755399387616,1e-08,191.32,191.31,164.52333385]
[1755399387943,1e-08,191.32,191.31,169.88283003]
[1755399388820,1e-08,191.32,191.31,167.67992367]
[1755399389221,1e-08,191.32,191.31,167.00992367]
[1755399391818,1e-08,191.32,191.31,129.38992367]
[1755399392028,1e-08,191.32,191.31,167.00992367]
[1755399392427,1e-08,191.32,191.31,129.38992367]
[1755399392587,1e-08,191.32,191.31,167.00992367]
[1755399394417,0.67000001,191.32,191.31,68.84711828]
[1755399395006,0.67000001,191.32,191.31,63.62]
[1755399396122,1e-08,191.32,191.31,63.62]
[1755399396611,0.67000001,191.32,191.31,63.62]
[1755399396924,1e-08,191.32,191.31,87.77992367]
[1755399399124,1e-08,191.32,191.31,167.67992367]
[1755399401705,1e-08,191.32,191.31,164.52333385]
[1755399401907,1e-08,191.32,191.31,167.67992367]
[1755399405630,1e-08,191.32,191.31,141.67992367]
[1755399408519,1e-08,191.32,191.31,141.00992367]
[1755399408940,1e-08,191.32,191.31,129.38992367]
[1755399409145,1e-08,191.32,191.31,166.98992367]
[1755399410011,1e-08,191.32,191.31,129.38992367]
[1755399410425,1e-08,191.32,191.31,166.98992367]
[1755399410636,1e-08,191.32,191.31,167.65992367]
[1755399412029,1e-08,191.32,191.31,166.98992367]
[1755399414711,1e-08,191.32,191.31,167.65992367]
[1755399415114,1e-08,191.32,191.31,167.68992367]
[1755399418238,1e-08,191.32,191.31,129.41992367]
[1755399418440,1e-08,191.32,191.31,166.99992367]
[1755399422458,1e-08,191.32,191.31,163.84333385]
[1755399422749,1e-08,191.32,191.31,166.99992367]
[1755399424136,1e-08,191.32,191.31,167.66992367]
[1755399424343,1e-08,191.32,191.31,141.66992367]
[1755399425247,1e-08,191.32,191.31,166.99992367]
[1755399426557,1e-08,191.32,191.31,167.66992367]
[1755399427060,1e-08,191.32,191.31,166.99992367]
[1755399428563,1e-08,191.32,191.31,167.66992367]
[1755399429859,1e-08,191.32,191.31,166.99992367]
[1755399431045,1e-08,191.32,191.31,167.66992367]
[1755399431663,1e-08,191.32,191.31,166.99992367]
[1755399432673,1e-08,191.32,191.31,167.66992367]
[1755399433256,1e-08,191.32,191.31,166.99992367]
[1755399434548,1e-08,191.32,191.31,167.71992367]
[1755399434849,1e-08,191.32,191.31,166.99992367]
[1755399436269,0.06,191.34,191.31,141.71992367]
[1755399436474,0.06,191.34,191.33,18.26280539]
[1755399436776,0.06,191.34,191.33,55.82280539]
[1755399436984,1e-08,191.34,191.33,55.82280539]
[1755399437154,1e-08,191.34,191.33,56.54280539]
[1755399437494,1e-08,191.34,191.33,136.44280539]
[1755399437772,1e-08,191.36,191.35,15.10621557]
[1755399438074,1e-08,191.36,191.35,56.34540795]
[1755399438274,1e-08,191.36,191.35,62.29143355]
[1755399438860,1e-08,191.36,191.35,64.38452355]
[1755399439991,1e-08,191.36,191.35,62.29143355]
[1755399440279,1e-08,191.36,191.35,64.38452355]
[1755399440481,1e-08,191.36,191.35,144.28452355]
[1755399440660,1e-08,191.36,191.35,143.76192099]
[1755399442475,1e-08,191.36,191.35,146.93984013]
[1755399442980,1e-08,191.36,191.35,108.65984013]
[1755399443151,1e-08,191.36,191.35,134.65984013]
[1755399443358,1e-08,191.36,191.35,92.29984013]
[1755399445968,1e-08,191.36,191.35,67.54244269]
[1755399446483,1e-08,191.36,191.35,147.44244269]
[1755399446684,1e-08,191.36,191.35,146.91984013]
[1755399448262,1e-08,191.36,191.35,149.01282113]
[1755399450002,1e-08,191.38,191.37,15.10621557]
[1755399450161,1e-08,191.38,191.37,56.32535333]
[1755399450371,1e-08,191.38,191.37,57.04535333]
[1755399450784,1e-08,191.38,191.37,59.13811433]
[1755399451291,1e-08,191.4,191.39,15.10621557]
[1755399451494,1e-08,191.4,191.39,56.30529872]
[1755399451793,1e-08,191.4,191.39,57.02529872]
[1755399452001,1e-08,191.4,191.39,62.2502321]
[1755399452200,0.06,191.46,191.43,41.10621557]
[1755399452405,0.1,191.48,191.45,18.26280539]
[1755399452713,0.1,191.48,191.46,56.30510769]
[1755399453266,0.1,191.48,191.46,57.02510769]
[1755399453900,0.06,191.49,191.47,15.10621557]
[1755399454087,0.06,191.49,191.48,61.52753068]
[1755399454468,0.06,191.49,191.48,62.24753068]
[1755399455501,0.06,191.5,191.49,15.10621557]
[1755399455675,0.06,191.5,191.49,18.26280539]
[1755399456477,0.06,191.5,191.49,18.98280539]
[1755399457218,0.06,191.5,191.49,24.2050102]
[1755399457712,13.45836717,191.58,191.51,41.10621557]
[1755399457713,0.66,191.57,191.51,41.10621557]
[1755399457892,0.66,191.57,191.51,162.18497133]
[1755399458067,0.66,191.54,191.51,121.00621557]
[1755399458273,0.76,191.52,191.51,161.66280539]
[1755399458691,0.1,191.52,191.51,161.66280539]
[1755399458895,0.1,191.52,191.51,162.38280539]
[1755399459202,1e-08,191.52,191.51,167.60446483]
[1755399459783,1e-08,191.52,191.51,90.86105465]
[1755399459985,1e-08,191.52,191.51,91.38322059]
[1755399460295,1e-08,191.52,191.51,93.47434059]
[1755399460598,13.24836718,191.58,191.55,26.0]
[1755399460783,13.24836718,191.58,191.57,18.26280539]
[1755399461098,13.90836718,191.58,191.57,15.10621557]
[1755399461401,0.66,191.58,191.57,20.32623958]
[1755399461596,0.66,191.58,191.57,23.4828294]
[1755399461903,3.15658982,191.63,191.58,15.10621557]
[1755399462074,3.15658982,191.63,191.59,37.5]
[1755399462476,3.15658982,191.61,191.59,37.5]
[1755399462891,3.81658982,191.6,191.58,37.5]
[1755399463177,0.66,191.59,191.54,15.10621557]
[1755399463499,0.66,191.59,191.56,15.10621557]
[1755399463698,0.66,191.58,191.57,37.48]
[1755399464815,3.81658982,191.58,191.57,37.48]
[1755399465194,0.67,191.61,191.58,5.21975153]
[1755399465420,0.06,191.6,191.59,37.48]
[1755399465622,0.73,191.6,191.59,37.48]
[1755399467534,0.73,191.6,191.59,42.69947909]
[1755399467823,0.06,191.6,191.59,42.69947909]
[1755399468225,0.73,191.6,191.59,42.69947909]
[1755399468413,0.73,191.6,191.59,37.48]
[1755399469230,0.73,191.6,191.59,42.69947909]
[1755399469729,3.88658982,191.6,191.55,79.9]
[1755399469923,3.15658982,191.58,191.56,37.48]
[1755399470114,0.73,191.6,191.57,15.10621557]
[1755399470305,0.06,191.6,191.58,37.48]
[1755399470506,0.73,191.6,191.58,37.48]
[1755399470708,0.06,191.6,191.58,37.48]
[1755399471733,0.67,191.59,191.58,37.48]
[1755399471937,3.82658982,191.59,191.58,37.48]
[1755399472122,0.06,191.6,191.58,42.69967027]
[1755399472824,0.06,191.6,191.58,37.48]
[1755399473027,0.67,191.59,191.58,37.48]
[1755399474137,3.82658982,191.59,191.58,37.48]
[1755399474524,0.67,191.59,191.58,37.48]
[1755399474730,3.82658982,191.59,191.58,37.48]
[1755399476145,3.82658982,191.59,191.58,37.46]
[1755399477027,3.82658982,191.59,191.54,46.35701491]
[1755399477227,0.67,191.58,191.55,37.46]
[1755399478035,3.82658982,191.58,191.55,37.46]
[1755399478747,0.67,191.57,191.55,37.46]
[1755399479146,3.15658982,191.58,191.55,37.46]
[1755399479621,9.70675897,191.59,191.55,38.12]
[1755399479819,6.55016915,191.59,191.56,15.76621557]
[1755399480028,6.55016915,191.59,191.57,41.27658982]
[1755399480243,6.55016915,191.59,191.57,40.61658982]
[1755399480449,6.55016915,191.59,191.58,0.66]
[1755399480814,6.55016915,191.59,191.58,9.03634135]
[1755399481038,6.55016915,191.59,191.58,24.14255692]
[1755399481831,0.06,191.6,191.59,15.10621557]
[1755399482147,0.06,191.6,191.59,61.60228448]
[1755399485060,0.06,191.6,191.59,57.78569466]
[1755399486149,0.06,191.6,191.59,37.46]
[1755399486330,3.88658982,191.6,191.54,0.03]
[1755399486532,3.15658982,191.55,191.54,0.03]
[1755399487048,7.70201013,191.55,191.53,0.03]
[1755399487253,7.70201013,191.54,191.53,0.03]
[1755399488337,12.92285172,191.54,191.53,0.03]
[1755399489748,16.41601459,191.54,191.53,0.03]
[1755399492841,7.36858318,191.54,191.53,0.03]
[1755399493155,7.04490702,191.54,191.53,0.03]
[1755399495855,3.15658982,191.58,191.53,26.72]
[1755399496047,3.15658982,191.59,191.54,0.69]
[1755399496250,3.15658982,191.59,191.54,26.69]
[1755399496438,3.15658982,191.59,191.54,29.15658982]
[1755399496773,3.15658982,191.59,191.55,0.69]
[1755399496956,3.15658982,191.59,191.56,5.22029651]
[1755399497264,3.15658982,191.59,191.57,0.69]
[1755399497639,3.15658982,191.58,191.55,0.69]
[1755399498653,0.06,191.6,191.55,5.91052171]
[1755399498861,0.06,191.6,191.59,26.0]
[1755399499364,0.06,191.6,191.59,26.69]
[1755399500839,0.06,191.6,191.59,26.0]
[1755399501045,3.21658982,191.6,191.59,26.0]
[1755399501462,0.06,191.6,191.59,31.21947909]
[1755399501658,0.06,191.6,191.59,35.06606891]
[1755399501866,0.06,191.6,191.59,50.17228448]
[1755399502069,0.06,191.6,191.59,47.01569466]
[1755399502385,0.06,191.6,191.59,50.17228448]
[1755399503891,0.06,191.6,191.59,87.61228448]
[1755399504459,0.06,191.6,191.59,58.45569466]
[1755399505463,0.06,191.6,191.59,42.65947909]
[1755399506151,3.21658982,191.6,191.59,26.0]
[1755399506357,3.21658982,191.6,191.57,37.44]
[1755399506557,3.15658982,191.58,191.57,37.44]
[1755399508375,3.15658982,191.58,191.55,5.25055529]
[1755399508690,3.15658982,191.59,191.57,0.69]
[1755399509495,0.06,191.6,191.58,0.69]
[1755399509658,0.06,191.6,191.59,63.44]
[1755399509856,0.06,191.6,191.59,64.13]
[1755399511286,0.06,191.6,191.59,63.44]
[1755399511465,0.06,191.6,191.59,68.65947909]
[1755399511669,0.06,191.6,191.59,69.34947909]
[1755399513086,0.06,191.6,191.59,68.65947909]
[1755399514263,0.06,191.6,191.59,69.34947909]
[1755399515660,0.06,191.6,191.59,87.61228448]
[1755399520388,0.06,191.6,191.59,86.92228448]
[1755399520777,0.06,191.6,191.59,87.61228448]
[1755399522087,0.06,191.6,191.59,84.45569466]
[1755399522294,0.06,191.6,191.59,87.61228448]
[1755399523984,0.06,191.6,191.59,86.92228448]
[1755399524690,0.06,191.6,191.59,83.76569466]
[1755399524868,0.06,191.6,191.59,86.92228448]
[1755399525682,0.06,191.6,191.59,83.76569466]
[1755399525888,0.06,191.6,191.59,86.92228448]
[1755399526425,0.06,191.6,191.59,167.53228448]
[1755399527614,0.06,191.6,191.59,105.9]
[1755399527773,0.06,191.6,191.59,148.51947909]
[1755399532182,0.06,191.6,191.59,68.61947909]
[1755399532382,0.06,191.6,191.59,69.32947909]
[1755399533892,0.06,191.6,191.59,68.61947909]
[1755399534096,3.92658982,191.6,191.55,0.03]
[1755399534305,3.15658982,191.56,191.55,0.03]
[1755399534686,3.86658982,191.56,191.55,0.03]
[1755399535285,29.86658982,191.56,191.55,0.03]
[1755399535923,16.48156272,191.56,191.55,0.03]
[1755399538031,42.48156272,191.56,191.55,0.03]
[1755399540916,42.48311762,191.56,191.55,0.03]
[1755399541727,11.26282111,191.56,191.55,0.03]
[1755399541901,3.15658982,191.56,191.55,0.03]
[1755399542235,41.16621557,191.6,191.55,0.03]
[1755399542236,3.21658982,191.6,191.55,0.74]
[1755399542434,3.21658982,191.6,191.56,0.71]
[1755399542674,0.06,191.6,191.56,0.71]
[1755399542804,0.06,191.6,191.57,3.86658982]
[1755399543136,0.06,191.6,191.58,0.71]
[1755399544218,0.06,191.6,191.59,0.71]
[1755399544932,3.21658982,191.6,191.57,0.71]
[1755399545336,0.06,191.6,191.57,9.08654528]
[1755399545520,0.06,191.6,191.59,29.15658982]
[1755399546016,0.06,191.6,191.59,26.71]
[1755399546216,3.21658982,191.6,191.57,5.21995546]
[1755399546517,0.06,191.6,191.59,44.26280539]
[1755399546748,0.06,191.6,191.59,44.97280539]
[1755399547760,0.06,191.6,191.59,50.19228448]
[1755399548626,0.06,191.6,191.59,87.59228448]
[1755399553060,0.06,191.62,191.6,15.10621557]
[1755399553249,0.06,191.62,191.61,40.53658982]
[1755399553456,0.06,191.62,191.61,41.24658982]
[1755399553652,0.06,191.62,191.61,40.53658982]
[1755399553861,0.06,191.62,191.61,46.46552411]
[1755399557065,0.06,191.64,191.63,41.10621557]
[1755399557235,0.06,191.64,191.63,55.64280539]
[1755399557441,0.06,191.64,191.63,56.33280539]
[1755399558480,0.06,191.64,191.63,61.55119499]
[1755399558855,0.06,191.66,191.65,41.10621557]
[1755399559162,0.06,191.66,191.65,81.62280539]
[1755399559381,0.72,191.75,191.69,26.0]
[1755399559581,0.72,191.75,191.71,3.15658982]
[1755399559886,0.72,191.75,191.72,37.36]
[1755399560185,0.72,191.77,191.72,37.36]
[1755399560468,0.72,191.79,191.75,34.37149769]
[1755399560646,8.70464068,191.83,191.76,37.36]
[1755399560847,3.15658982,191.8,191.76,37.36]
[1755399561170,0.72,191.79,191.76,37.36]
[1755399561645,0.72,191.78,191.76,37.36]
[1755399561842,0.72,191.82,191.76,37.36]
[1755399562080,3.15658982,191.8,191.76,38.05]
[1755399562341,3.87658982,191.79,191.76,37.36]
[1755399562558,0.72,191.78,191.76,37.36]
[1755399563183,0.72,191.8,191.76,42.57468664]
[1755399563376,3.15658982,191.79,191.76,43.26468664]
[1755399563696,3.15658982,191.79,191.76,37.36]
[1755399563852,3.15658982,191.78,191.76,37.36]
[1755399564446,0.72,191.77,191.76,37.36]
[1755399564895,3.15658982,191.78,191.76,37.36]
[1755399565281,3.87658982,191.77,191.73,26.0]
[1755399565485,3.87658982,191.77,191.74,37.34]
[1755399565709,0.72,191.77,191.74,37.34]
[1755399565878,3.87658982,191.77,191.74,37.34]
[1755399566408,3.15658982,191.77,191.74,37.34]
[1755399566893,0.72,191.77,191.75,37.34]
[1755399567208,3.15658982,191.76,191.75,37.34]
[1755399567385,3.87658982,191.76,191.75,37.34]
[1755399567589,3.15658982,191.76,191.75,37.34]
[1755399567795,3.87658982,191.76,191.75,37.34]
[1755399567994,3.87658982,191.76,191.73,37.34]
[1755399568184,3.15658982,191.74,191.66,0.69]
[1755399568383,0.72,191.73,191.67,37.34]
[1755399568802,3.15658982,191.72,191.67,69.2471016]
[1755399569015,3.15658982,191.72,191.68,0.69]
[1755399569201,3.15658982,191.72,191.69,37.34]
[1755399570481,3.15658982,191.73,191.69,38.03]
[1755399571206,3.15658982,191.74,191.69,42.55670884]
[1755399571394,3.87658982,191.73,191.69,37.34]
[1755399571710,3.15658982,191.7,191.69,37.34]
[1755399572102,3.87658982,191.7,191.69,37.34]
[1755399572483,3.15658982,191.7,191.69,37.34]
[1755399572796,0.72,191.72,191.69,37.34]
[1755399572797,3.15658982,191.71,191.69,37.34]
[1755399573284,3.15658982,191.71,191.67,26.0]
[1755399573487,3.15658982,191.7,191.68,37.34]
[1755399573815,3.15658982,191.71,191.68,37.34]
[1755399574188,3.15658982,191.7,191.68,37.34]
[1755399575227,3.15658982,191.71,191.68,37.34]
[1755399575428,3.15658982,191.7,191.68,37.34]
[1755399575934,0.72,191.74,191.68,37.34]
[1755399576112,3.15658982,191.74,191.69,0.69]
[1755399576425,3.15658982,191.74,191.7,37.34]
[1755399576622,3.15658982,191.74,191.71,0.69]
[1755399576825,3.15658982,191.73,191.72,37.34]
[1755399578402,0.32,191.74,191.72,37.34]
[1755399578602,3.15658982,191.73,191.72,37.34]
[1755399579015,3.47658982,191.73,191.7,26.0]
[1755399579226,0.32,191.76,191.71,37.34]
[1755399579417,3.15658982,191.72,191.71,37.34]
[1755399580533,3.15658982,191.72,191.71,38.03]
[1755399581517,3.15658982,191.72,191.71,37.34]
[1755399583020,3.87658982,191.72,191.69,37.34]
[1755399583223,0.06,191.76,191.7,0.69]
[1755399583430,3.15658982,191.73,191.7,0.69]
[1755399583622,3.15658982,191.73,191.69,37.34]
[1755399583827,3.15658982,191.73,191.71,0.69]
[1755399584038,0.06,191.76,191.71,0.69]
[1755399584234,0.06,191.76,191.72,37.34]
[1755399584403,0.06,191.76,191.73,0.7]
[1755399584611,0.06,191.76,191.75,26.0]
[1755399584811,0.06,191.76,191.75,69.23512385]
[1755399585310,0.06,191.76,191.75,72.39171367]
[1755399585751,0.06,191.76,191.75,69.23512385]
[1755399586047,0.06,191.76,191.75,64.02]
[1755399586244,0.06,191.76,191.75,63.32]
[1755399586448,0.06,191.76,191.75,64.02]
[1755399586948,0.06,191.76,191.75,63.32]
[1755399587320,3.21658982,191.76,191.75,37.32]
[1755399587743,0.06,191.76,191.75,37.32]
[1755399587949,0.06,191.76,191.75,38.02]
[1755399588550,0.06,191.76,191.75,43.23512385]
[1755399588729,0.06,191.76,191.75,38.02]
[1755399588925,0.06,191.76,191.75,37.32]
[1755399589129,0.06,191.76,191.75,82.28280539]
[1755399589834,0.06,191.76,191.75,79.12621557]
[1755399591346,0.06,191.76,191.75,84.34133942]
[1755399591648,0.06,191.76,191.75,87.49792924]
[1755399592150,0.06,191.76,191.75,84.34133942]
[1755399594255,0.06,191.76,191.75,164.24133942]
[1755399600180,0.06,191.76,191.75,159.02621557]
[1755399600474,0.06,191.76,191.75,143.22]
[1755399600664,0.06,191.76,191.75,161.48280539]
[1755399600865,0.06,191.76,191.75,167.39792924]
[1755399601175,0.06,191.78,191.77,41.10621557]
[1755399601469,0.06,191.8,191.78,15.10621557]
[1755399601684,3.50331732,191.9,191.87,26.0]
[1755399601868,0.02637826,191.91,191.89,3.15658982]
[1755399602041,0.02637826,191.91,191.9,55.56280539]
[1755399602238,0.02637826,191.91,191.9,60.77385281]
[1755399602446,0.02637826,191.91,191.9,61.47385281]
[1755399602674,5.0,192.0,191.94,41.10621557]
[1755399602846,5.0,192.0,191.99,18.26280539]
[1755399603174,5.0,192.0,191.99,56.30280539]
[1755399603578,4.28,192.0,191.99,18.96280539]
[1755399603878,1e-08,192.0,191.99,56.32280539]
[1755399604047,1e-08,192.0,191.99,36.72482018]
[1755399604247,0.68,192.14,192.06,26.0]
[1755399604447,3.83658982,192.14,192.09,18.26280539]
[1755399604767,3.47297503,192.21,192.1,37.48]
[1755399605078,5.31527269,192.11,191.99,5.90860461]
[1755399605266,4.03843264,192.1,191.97,10.52418627]
[1755399605580,0.18,192.1,191.99,5.31527269]
[1755399605752,5.31527269,192.05,192.0,38.28]
[1755399605951,5.31527269,192.01,191.93,0.7]
[1755399606279,5.31527269,191.94,191.91,37.62]
[1755399606447,5.31527269,191.92,191.91,37.62]
[1755399606645,50.63717808,192.06,191.91,42.93527269]
[1755399606646,13.01717808,192.06,191.91,42.93527269]
[1755399606881,5.31527269,192.02,191.96,20.42148826]
[1755399607047,5.31527269,192.03,191.97,42.99527269]
[1755399607377,5.31527269,192.02,191.97,42.99527269]
[1755399607749,5.31527269,192.02,191.98,0.7]
[1755399607966,5.31527269,192.03,191.99,0.7]
[1755399608280,5.31527269,192.02,191.99,0.7]
[1755399608459,53.290677,192.11,191.99,0.7]
[1755399608661,5.31527269,192.05,192.0,37.66]
[1755399608971,5.31527269,192.04,192.0,37.66]
[1755399609545,0.68,192.06,192.0,37.66]
[1755399609746,5.31527269,192.04,192.0,37.66]